Cogmind - Beta 15 @@@ ROGUE MODE // 2025.06.18 @ 00:18:28 Player: nado Result: Destroyed by S-27 Virus with Autogun Performance ------------- Evolutions (6) 3000 Regions Visited (25) 5000 Robots Destroyed (307) 1535 Value Destroyed (12522) 12522 Prototype IDs (38) 760 Alien Tech Used (0) 0 Bonus (6511) 6511 TOTAL SCORE: 29328 Bonus ------- High Alert Combat Kills 1025 Follower Combat Kills 2513 Network Hubs Disabled 200 Met Data Miner 300 Destroyed Z-Imprinter 1000 Triggered Deep Caves Wall 500 Exposed GOLEM Chamber 500 Built Enhanced Grunts 300 A7 Reached Mainframe 300 Met R17 at Cetus 500 Friendly Fire -627 Cogmind --------- Core Integrity 0/1150 Matter 12/300 Energy 100/100 System Corruption 15% Temperature Cool (0) Movement Core (100) Ox1 Location -4/Factory Parts ------- > --- POWER (2) -------- (None) > --- PROPULSION (3) --- (None) > --- UTILITY (11) ----- Assembled Alloy Armor GOLEM Unit > --- WEAPON (3) ------- (None) > --- INVENTORY (5) ---- Huge Storage Unit Advanced Terrain Scanner Improved Transmission Jammer GOLEM Unit Peak State ------------ > --- POWER ------------ Assembled Flux Generator > --- PROPULSION ------- Armored Leg Assembled Alloy Leg Assembled Alloy Leg > --- UTILITY ---------- Assembled Nanovents Assembled Nanovents Assembled Nanovents Huge Storage Unit Assembled Biocell Array Assembled Suspension Frame Assembled Combat Suite Transmission Jammer Assembled Alloy Armor GOLEM Unit > --- WEAPON ----------- Assembled Focal Cannon Assembled Focal Cannon Assembled Focal Cannon > --- INVENTORY -------- Quantum Reactor Quantum Reactor Quantum Reactor Zionite Composite Leg I Zionite Composite Leg I Zionite Biocell Zionite Biocell Zionite Biocell Improved Terrain Scanner Advanced Terrain Scanner Advanced Terrain Scan Processor Improved Particle Charger Improved Transmission Jammer Improved Shield Generator Long-range Tractor Beam GOLEM Unit GOLEM Unit Heavy Riot Gun Long-range Proton Cannon Heavy Missile Launcher Heavy Missile Launcher Rocket Array Improved Plasma Cutter [Rating: 166] Favorites ----------- Power Assembled Flux Generator Engine Heavy Ion Engine Power Core Light Nuclear Core Reactor Assembled Flux Generator Propulsion Assembled Alloy Leg Treads Light Treads Leg Assembled Alloy Leg Wheel Armored Huge Wheel Utility Assembled Nanovents Device Assembled Nanovents Storage Huge Storage Unit Processor Improved Signal Interpreter Protection Assembled Alloy Armor Weapon Assembled Focal Cannon Energy Gun Beamcaster Energy Cannon Assembled Focal Cannon Ballistic Gun Shotgun Ballistic Cannon Heavy Assault Cannon Launcher Rocket Array Special Weapon Improved Plasma Cutter Impact Weapon Power Maul Build | -11 -10 -9 -9 -9 -8 -8 -7 -7 -7 -7 -7 -7 -7 -6 -6 -6 -6 -6 -5 -5 -5 -5 -5 -5 -4 ------- Run | Yrd Mat Mat Min Exi Min Mat Fac Was Fac Low Low Zio Dee Pro Fac Low Low Dat Pro Fac Ext Cet Arc Hub Fac Slots Evolved 12 | . . 2 . . . 2 2 . . . . . . . 2 . . . . 2 . . . . 2 Power 1 | . . . . . . . . . . . . . . . 1 . . . . . . . . . . Propulsion 1 | . . . . . . 1 . . . . . . . . . . . . . . . . . . . Utility 9 | . . 1 . . . 1 2 . . . . . . . 1 . . . . 2 . . . . 2 Weapon 1 | . . 1 . . . . . . . . . . . . . . . . . . . . . . . Parts Attached 141 | . 9 26 . 1 9 31 2 6 5 . 4 2 20 . 2 . . . 1 4 2 . . 1 16 Power 12 | . 4 2 . . 1 1 . 1 . . . . 2 . . . . . . . . . . . 1 Engine 6 | . 2 2 . . 1 1 . . . . . . . . . . . . . . . . . . . Core 2 | . 2 . . . . . . . . . . . . . . . . . . . . . . . . Reactor 4 | . . . . . . . . 1 . . . . 2 . . . . . . . . . . . 1 Propulsion 35 | . 1 10 . . 3 9 . 1 . . 1 . 4 . . . . . 1 1 . . . . 4 Treads 25 | . . 10 . . 3 9 . 1 . . . . 2 . . . . . . . . . . . . Leg 9 | . 1 . . . . . . . . . . . 2 . . . . . 1 1 . . . . 4 Wheel 1 | . . . . . . . . . . . 1 . . . . . . . . . . . . . . Hover . | . . . . . . . . . . . . . . . . . . . . . . . . . . Flight . | . . . . . . . . . . . . . . . . . . . . . . . . . . Utility 56 | . 3 5 . 1 2 12 2 1 2 . 2 . 12 . 2 . . . . 3 2 . . . 7 Device 28 | . 2 1 . . 2 4 1 1 1 . 2 . 3 . 1 . . . . 2 2 . . . 6 Storage 7 | . 1 . . 1 . 1 . . 1 . . . 1 . 1 . . . . 1 . . . . . Processor 2 | . . . . . . . 1 . . . . . . . . . . . . . . . . . 1 Hackware . | . . . . . . . . . . . . . . . . . . . . . . . . . . Protection 19 | . . 4 . . . 7 . . . . . . 8 . . . . . . . . . . . . Artifact . | . . . . . . . . . . . . . . . . . . . . . . . . . . Weapon 38 | . 1 9 . . 3 9 . 3 3 . 1 2 2 . . . . . . . . . . 1 4 Energy Gun 9 | . . 2 . . . . . 3 . . 1 2 . . . . . . . . . . . . 1 Energy Cannon 6 | . . . . . 1 1 . . 1 . . . 2 . . . . . . . . . . . 1 Ballistic Gun 15 | . 1 7 . . 2 5 . . . . . . . . . . . . . . . . . . . Ballistic Cannon 2 | . . . . . . 2 . . . . . . . . . . . . . . . . . . . Launcher 4 | . . . . . . 1 . . 1 . . . . . . . . . . . . . . . 2 Special Weapon 1 | . . . . . . . . . . . . . . . . . . . . . . . . 1 . Impact Weapon 1 | . . . . . . . . . 1 . . . . . . . . . . . . . . . . Slashing Weapon . | . . . . . . . . . . . . . . . . . . . . . . . . . . Piercing Weapon . | . . . . . . . . . . . . . . . . . . . . . . . . . . Special Melee Weapon . | . . . . . . . . . . . . . . . . . . . . . . . . . . Unidentified Prototypes 12 | . . 1 . . . 1 . . 1 . . . 8 . . . . . . . . . . . 1 Corrupted Parts 1 | . . . . . . . . . . . . . . . . . . . . . . . . . 1 System Corruption 12 | . . . . . . . . . . . . . . . . . . . . . . . . . 12 Parts Lost 67 | . 2 2 . . 8 9 . . . . 3 . 11 . 3 1 . . . 1 2 . . . 25 Power 5 | . 1 . . . 1 . . . . . . . 1 . . . . . . . . . . . 2 Propulsion 14 | . . . . . 3 3 . . . . . . 2 . . . . . . . . . . . 6 Utility 31 | . . 1 . . 1 3 . . . . 2 . 6 . 3 1 . . . 1 2 . . . 11 Weapon 17 | . 1 1 . . 3 3 . . . . 1 . 2 . . . . . . . . . . . 6 Highest Loss Streak 21 | . 2 1 . . 4 7 . . . . 2 . 6 . 2 1 . . . 1 1 . . . 21 To Critical Strikes 5 | . . . . . . . . . . . . . . . . . . . . . . . . . 5 Average Backups 20 | . 8 18 20 20 15 18 18 18 20 24 24 24 21 21 22 22 22 23 22 23 23 23 23 22 22 Power 1 | . 1 2 2 2 1 1 1 1 1 1 1 1 . 2 2 3 3 3 3 3 3 3 3 3 2 Propulsion 6 | . 4 8 10 10 8 7 9 9 10 10 10 10 6 2 2 2 2 2 2 2 2 2 2 2 1 Utility 6 | . . . . . . 3 2 2 3 5 5 4 5 9 11 11 11 12 11 11 12 12 12 12 12 Weapon 5 | . . 7 8 8 6 5 5 5 5 7 7 7 7 7 5 5 5 5 5 5 5 5 5 5 4 Tool/Special . | . . . . . . . . . . . . . . . . . . . . . . . . . . Unused Backups 60 | 6 3 15 . . . 5 . 1 1 . . 1 8 . 5 . . . . 3 . 2 . . 10 Power 9 | 1 1 1 . . . . . 1 . . . . 1 . . . . . . . . 2 . . 2 Propulsion 19 | 2 1 6 . . . 2 . . . . . . 7 . . . . . . . . . . . 1 Utility 12 | 1 . . . . . . . . . . . 1 . . 2 . . . . 1 . . . . 7 Weapon 19 | 2 1 8 . . . 3 . . 1 . . . . . 3 . . . . 1 . . . . . Tool/Special 1 | . . . . . . . . . . . . . . . . . . . . 1 . . . . . Average Slot Usage (%) 90 | . 93 98 100 100 97 94 99 95 92 92 91 89 81 92 85 85 85 77 84 87 87 88 88 88 83 Engine 3 | . 3 9 11 11 10 9 7 1 . . . . . . . . . . . . . . . . . Reactor 4 | . . . . . . . . 5 7 7 7 7 6 7 6 6 6 6 6 5 4 5 5 5 4 Treads 10 | . . 17 22 22 21 26 23 18 15 15 14 7 9 . . . . . . . . . . . . Leg 8 | . 28 4 . . . . . . . . . . 5 23 20 20 20 20 19 17 17 17 17 17 14 Device 18 | . 8 11 11 11 18 7 14 15 15 15 23 30 10 15 19 20 20 20 20 28 29 29 29 29 32 Storage 10 | . 14 11 11 11 11 9 7 7 7 7 7 7 9 15 13 13 12 13 13 11 11 11 11 11 9 Processor 2 | . . . . . . . 7 7 7 7 7 7 7 7 1 . . . . . . . . . . Protection 8 | . . 9 11 11 1 18 15 15 15 15 5 . 10 . 4 6 6 6 4 5 5 5 5 5 4 Energy Gun 4 | . . 9 . . . . . 9 18 15 14 16 4 . . . . . . . . . . . . Energy Cannon 8 | . . . . . . . . . 4 7 6 3 8 23 20 19 20 10 20 17 16 17 17 16 13 Ballistic Gun 8 | . 28 23 33 33 32 15 23 13 . . . . . . . . . . . . . . . . . Peak Build Rating 166 | . 11 23 19 19 25 43 46 61 63 61 61 59 110 103 136 136 136 136 136 151 149 148 148 148 166 Average Rating 78 | . 8 20 19 19 21 33 45 54 60 61 59 55 72 103 133 135 135 122 132 149 146 147 148 147 155 On Entrance 81 | 6 6 11 19 19 19 25 40 46 61 61 61 56 59 103 103 136 136 136 136 133 149 147 148 148 148 Naked Turns . | . . . . . . . . . . . . . . . . . . . . . . . . . . Heaviest Build 182 | 12 49 62 62 62 62 93 78 86 127 127 127 117 144 144 174 174 174 174 174 176 176 176 176 176 182 Greatest Support 104 | 20 20 40 40 40 40 66 66 92 92 92 92 28 92 88 88 88 88 88 88 80 60 60 60 60 104 Greatest Overweight (x) 16 | . 16 3 1 1 1 1 1 1 1 1 4 4 4 1 1 2 1 1 2 2 5 5 2 2 3 Average Overweight (x) 1 | . 1 1 1 1 1 . 1 . . 1 1 3 1 1 1 1 1 1 1 2 2 2 2 2 1 Largest Inventory Capacity 25 | . 20 20 20 20 20 20 20 20 25 25 25 25 25 25 25 25 25 25 25 25 25 25 25 25 25 Average Capacity 22 | . 12 20 20 20 20 20 20 20 22 25 25 25 25 25 25 25 25 25 25 25 25 25 25 25 24 Most Carried 25 | . 9 20 20 20 20 20 19 20 25 25 25 25 25 24 25 25 25 25 25 25 25 25 25 25 25 Average Carried 22 | . 8 18 20 20 15 18 18 19 21 25 25 24 23 24 24 24 24 25 24 24 24 24 25 24 24 Final Capacity 25 | 8 20 20 20 20 20 20 20 20 25 25 25 25 25 25 25 25 25 25 25 25 25 25 25 25 5 Final Carried 25 | 6 9 20 20 20 14 20 18 20 25 25 25 25 24 24 25 25 25 25 25 25 25 25 25 25 5 Class Distribution -------------------- 29% | Golem 24% | Tank 14% | Scavenger-Tank 9% | Commander-Golem 9% | Mutant 4% | Scavenger-Skirmisher Dominant Class ---------------- Mutant | -10/Materials Scavenger-Tank | -9/Materials Tank | -9/Mines Tank | -9/Exiles Gunner | -8/Mines Scavenger-Tank | -8/Materials Tank | -7/Factory Tank | -7/Waste Tank | -7/Factory Tank | -7/Lower Caves Scavenger-Skirmisher | -7/Lower Caves Scavenger-Skirmisher | -7/Zion Mutant | -7/Deep Caves Golem | -6/Proximity Caves Golem | -6/Factory Golem | -6/Lower Caves Golem | -6/Lower Caves Golem | -6/Data Miner Golem | -5/Proximity Caves Golem | -5/Factory Commander-Golem | -5/Extension Commander-Golem | -5/Cetus Commander-Golem | -5/Archives Commander-Golem | -5/Hub_04(d) Golem | -4/Factory Resources | -11 -10 -9 -9 -9 -8 -8 -7 -7 -7 -7 -7 -7 -7 -6 -6 -6 -6 -6 -5 -5 -5 -5 -5 -5 -4 ----------- Run | Yrd Mat Mat Min Exi Min Mat Fac Was Fac Low Low Zio Dee Pro Fac Low Low Dat Pro Fac Ext Cet Arc Hub Fac Matter Collected 4457 | 200 216 816 82 . 332 1593 . 190 61 22 94 53 429 15 15 10 . . 19 51 85 12 . 52 110 Remotely . | . . . . . . . . . . . . . . . . . . . . . . . . . . Salvage Created 13255 | . 529 2048 103 . 556 2276 70 52 120 62 213 . 652 191 744 558 187 . 443 846 1436 228 67 237 1637 Parts 640 | . 27 121 7 . 22 125 7 1 6 2 6 . 20 5 34 21 11 . 29 30 56 12 . 18 80 Haulers Intercepted 13 | . 1 6 . . . 5 . . . . . . . . . . . . . . . . . . 1 Recyclers Shooed 12 | . 4 2 . . . 2 . . 3 . . . . . 1 . . . . . . . . . . Parts Field Recycled . | . . . . . . . . . . . . . . . . . . . . . . . . . . Retrieved Matter . | . . . . . . . . . . . . . . . . . . . . . . . . . . Parts Self-Destructed 84 | . . . . . . . . . . . 18 . . 5 . 21 11 . 29 . . . . . . Prevented 3 | . . . . . . . . . . . 3 . . . . . . . . . . . . . . Kills | -11 -10 -9 -9 -9 -8 -8 -7 -7 -7 -7 -7 -7 -7 -6 -6 -6 -6 -6 -5 -5 -5 -5 -5 -5 -4 ------- Run | Yrd Mat Mat Min Exi Min Mat Fac Was Fac Low Low Zio Dee Pro Fac Low Low Dat Pro Fac Ext Cet Arc Hub Fac Combat Hostiles Destroyed 283 | . 12 35 6 . 11 49 3 . . 1 3 . 46 3 13 11 5 . 12 10 20 3 1 3 36 Melee 3 | . . . . . . 1 . . . . . . 2 . . . . . . . . . . . . Guns 102 | . 12 35 6 . 9 31 3 . . 1 2 . 3 . . . . . . . . . . . . Cannons 106 | . . . . . 1 8 . . . . 1 . 1 3 12 11 5 . 12 8 19 3 1 3 18 AOE 66 | . . . . . 1 9 . . . . . . 38 . 1 . . . . 2 . . . . 15 Classes Destroyed 29 | . 2 8 . . 2 3 . 1 . 1 2 . 4 . . . . . 2 . . . . . 4 Worker 18 | . . 4 1 . . 4 . . . . . . . . . . . . . 2 1 . . 2 4 Builder 4 | . . . . . . 2 . . 1 . . . . . . . . . . . . . . . 1 Tunneler 4 | . . . . . 1 . . . . . . . . . 1 . . . . 2 . . . . . Hauler 13 | . 1 6 . . . 5 . . . . . . . . . . . . . . . . . . 1 Recycler 11 | . . 4 . . . 3 . . 1 . . . . . . . . . . 2 1 . . . . Mechanic 1 | . . . . . . . . . . . . . . . . . . . . . . . . . 1 Operator 2 | . . 1 . . . . . . . . . . . . 1 . . . . . . . . . . Drone 2 | . . . . . . . . . . . . . . . . . . . 2 . . . . . . Watcher 5 | . . 1 . . . . . . . . . . . . 2 . . . . . . 1 . . 1 Swarmer 56 | . . 7 6 . . 15 3 . . . . . . . . 4 3 . 6 . 4 . . . 8 Saboteur 1 | . . . . . . . . . . . . . . . . . . . . . . . . . 1 Grunt 83 | . 12 16 . . 9 22 . . . . 1 . . 2 4 3 . . . 8 4 . . . 2 Brawler 5 | . . 1 . . . 1 . . . . 1 . . . 1 1 . . . . . . . . . Duelist 9 | . . 2 . . 1 1 . . . . . . . . 1 2 . . 2 . . . . . . Protector 1 | . . . . . . . . . . . . . . . . . . . . . . . . . 1 Sentry 37 | . . 9 . . . 7 . . . . . . . 1 3 1 . . 1 . 11 . 1 1 2 Specialist 3 | . . . . . . 1 . . . . . . . . . . . . . . . . . . 2 Hunter 18 | . . . . . 1 1 . . . . . . . . 2 . 2 . . . . . . . 12 Programmer 12 | . . . . . . . . . . . 1 . . . 2 . . . . 2 . . . . 7 Heavy 1 | . . . . . . 1 . . . . . . . . . . . . . . . . . . . Behemoth 3 | . . . . . . . . . . . . . . . . . . . 1 . 1 . . 1 . Cetus Guard 3 | . . . . . . . . . . . . . . . . . . . . . . 3 . . . Lightning 1 | . . . . . . . . . . . . . . . . . . . . . . . . 1 . Executioner 1 | . . . . . . . . . . . . . . . . . . . . . . . . . 1 Z-Light 5 | . . . . . . . . . . . . . 5 . . . . . . . . . . . . Samaritan 1 | . . . . . . . . . . . 1 . . . . . . . . . . . . . . Assembler 2 | . . . . . . . . . . . . . 2 . . . . . . . . . . . . Assembled 38 | . . . . . . . . . . . . . 38 . . . . . . . . . . . . Golem 2 | . . . . . . . . . . . . . 2 . . . . . . . . . . . . Martyr 2 | . . . . . . . . 1 1 . . . . . . . . . . . . . . . . Mutant 1 | . . . . . . . . . . 1 . . . . . . . . . . . . . . . Best Kill Streak 37 | . 3 8 3 . 6 10 3 . 1 1 2 . 37 2 6 5 3 . 7 12 4 2 1 3 21 Combat Bots Only 35 | . 3 5 3 . 6 7 3 . . 1 2 . 35 2 4 5 3 . 7 7 4 2 1 1 23 Max Kills in Single Turn 34 | . 2 2 2 . 1 2 1 1 1 1 1 . 34 1 2 1 1 . 1 3 1 1 1 1 5 Gunslinging 1 | . 1 1 1 . . 1 . . . . . . . . . . . . . . . . . . . Exploded 34 | . . . . . 1 2 . . . . . . 34 . 1 . . . . 2 . . . . 4 Melee 1 | . . . . . . 1 . . . . . . 1 . . . . . . . . . . . . Uniques/NPCs Destroyed 1 | . . . . . . . . . . . . . 1 . . . . . . . . . . . . Z-Imprinter (-7/Deep Caves) Combat | -11 -10 -9 -9 -9 -8 -8 -7 -7 -7 -7 -7 -7 -7 -6 -6 -6 -6 -6 -5 -5 -5 -5 -5 -5 -4 -------- Run | Yrd Mat Mat Min Exi Min Mat Fac Was Fac Low Low Zio Dee Pro Fac Low Low Dat Pro Fac Ext Cet Arc Hub Fac Hostile Shots Fired 1600 | . 65 144 13 . 82 233 25 . . 6 68 . 64 21 105 32 45 . 63 42 93 5 . 34 460 Missed 499 | . 15 34 2 . 17 64 6 . . 1 25 . 12 6 37 14 12 . 26 9 29 1 . 7 182 Hits 1101 | . 50 110 11 . 65 169 19 . . 5 43 . 52 15 68 18 33 . 37 33 64 4 . 27 278 Melee 19 | . . 4 . . 2 2 . . . . 3 . 5 . . . . . 1 . . . . . 2 Projectile 1082 | . 50 106 11 . 63 167 19 . . 5 40 . 47 15 68 18 33 . 36 33 64 4 . 27 276 AOE 1 | . . . . . . . . . . . . . . . 1 . . . . . . . . . . Critical Strikes 45 | . 1 6 . . 2 10 . . . . 5 . . . 1 . . . 1 4 2 . . 2 11 Actively Blocked 2 | . . . . . . 2 . . . . . . . . . . . . . . . . . . . Part Disruptions 1 | . . . . . . . . . . . . . . . . . . . . . . . . . 1 Damage Taken 19348 | . 641 1402 97 . 1066 2732 277 . 53 82 875 . 2072 147 1285 280 456 . 589 600 1056 77 22 718 4821 Core 2876 | . 188 144 6 . 31 264 70 . . . 100 . 149 16 285 15 134 . 65 83 62 22 . 92 1150 Absorbed by Shields 150 | . . . . . . . . . . . . . . . . . . . . . 117 33 . . . Redirected to Shielding 231 | . . . . . . 70 . . . . . . 161 . . . . . . . . . . . . Ignored by Resistances 1414 | . . . . . . 44 . . . . . . . . 164 57 98 . 122 120 238 23 5 138 405 Regen/Repaired (Parts) 237 | . . . . . . . . 223 14 . . . . . . . . . . . . . . . . Core Remaining (%) 56 | 100 24 . . . 54 52 . . . . . . . 52 . . . . 41 . . . . 74 . Volleys Fired 690 | . 62 81 7 . 40 117 9 6 3 3 8 . 14 5 44 19 13 . 25 32 49 8 1 17 127 Largest 3 | . 2 3 3 . 3 3 3 3 3 3 3 . 3 3 3 3 3 . 3 3 3 3 3 3 3 Hottest 231 | . 40 135 69 . 109 102 75 231 231 231 231 . 231 75 75 75 75 . 75 75 75 75 75 75 81 Shots Fired 1512 | . 124 243 21 . 87 275 27 18 10 9 18 . 36 15 107 40 32 . 55 54 135 22 3 37 144 Gun 782 | . 124 243 21 . 82 205 27 18 7 6 10 . 26 . . . . . . . . . . . 13 Cannon 707 | . . . . . 5 62 . . 3 3 8 . 7 15 107 40 32 . 55 54 135 22 3 37 119 Launcher 23 | . . . . . . 8 . . . . . . 3 . . . . . . . . . . . 12 Special . | . . . . . . . . . . . . . . . . . . . . . . . . . . Kinetic 688 | . 124 174 21 . 82 260 27 . . . . . . . . . . . . . . . . . . Thermal 748 | . . 69 . . . . . 18 10 9 18 . 29 15 107 40 32 . 55 54 135 22 3 37 95 Explosive 23 | . . . . . . 8 . . . . . . 3 . . . . . . . . . . . 12 Electromagnetic 53 | . . . . . 5 7 . . . . . . 4 . . . . . . . . . . . 37 Robot Hit Streak 27 | . 11 27 5 . 12 20 5 10 9 2 9 . 12 10 10 9 7 . 17 14 18 17 7 7 13 Robot Miss Streak 7 | . 4 2 7 . 2 5 3 2 2 3 1 . 5 . 3 2 2 . 2 2 3 1 . 3 4 Penetration Max . | . . . . . . . . . . . . . . . . . . . . . . . . . . Secondary Targets 21 | . 1 6 3 . . 7 2 . . . . . 2 . . . . . . . . . . . . Max Gunslinging Chain 1 | . 1 1 1 . . 1 1 . . . . . 1 . . . . . . . . . . . . Capacitor 71 | . . . . . . . . . . . . . . . . . . . . . . . . . 71 Shots Hit Robots 954 | . 82 177 11 . 65 180 13 14 8 2 10 . 29 9 45 24 23 . 36 26 98 17 2 16 67 Core Hits 661 | . 37 76 8 . 30 98 7 4 4 1 5 . 113 2 19 12 7 . 15 18 33 7 1 9 155 Critical Kills 1 | . . 1 . . . . . . . . . . . . . . . . . . . . . . . Critical Parts Destroyed 4 | . . . . . . . . . . . . . 4 . . . . . . . . . . . . Critical Strikes 18 | . . 5 . . . 4 . 3 . . . . 6 . . . . . . . . . . . . Burn 9 | . . 4 . . . . . 3 . . . . 2 . . . . . . . . . . . . Destroy 1 | . . 1 . . . . . . . . . . . . . . . . . . . . . . . Blast 4 | . . . . . . 4 . . . . . . . . . . . . . . . . . . . Smash 4 | . . . . . . . . . . . . . 4 . . . . . . . . . . . . Melee Attacks 26 | . . . . . . . . . 2 . 4 . 20 . . . . . . . . . . . . Impact 26 | . . . . . . . . . 2 . 4 . 20 . . . . . . . . . . . . Slashing . | . . . . . . . . . . . . . . . . . . . . . . . . . . Piercing . | . . . . . . . . . . . . . . . . . . . . . . . . . . Sneak Attacks . | . . . . . . . . . . . . . . . . . . . . . . . . . . Combat Hostiles . | . . . . . . . . . . . . . . . . . . . . . . . . . . Follow-up Attacks . | . . . . . . . . . . . . . . . . . . . . . . . . . . Damage Inflicted 37135 | . 765 2947 203 . 1151 4762 222 392 325 45 281 . 3740 476 2780 1117 953 . 1633 2084 4601 838 102 910 6808 Guns 8649 | . 754 2922 153 . 967 2375 212 392 130 45 167 . 346 . . . . . . . . . . . 186 Cannons 18495 | . . . . . 122 1471 . . 75 . 87 . 20 476 2157 1117 953 . 1633 1299 4601 838 102 910 2634 Explosions 8982 | . . . . . 40 844 . . . . . . 2802 . 571 . . . . 775 . . . . 3950 Melee 572 | . . . . . . . . . . . . . 572 . . . . . . . . . . . . Ramming 437 | . 11 25 50 . 22 72 10 . 120 . 27 . . . 52 . . . . 10 . . . . 38 Kinetic 7792 | . 754 2012 153 . 967 3694 212 . . . . . . . . . . . . . . . . . . Thermal 19600 | . . 910 . . 40 60 . 392 205 45 254 . 346 476 2380 1117 953 . 1633 2074 4601 838 102 910 2264 Explosive 7790 | . . . . . . 784 . . . . . . 2802 . 348 . . . . . . . . . 3856 Electromagnetic 944 | . . . . . 122 152 . . . . . . 20 . . . . . . . . . . . 650 Impact 572 | . . . . . . . . . . . . . 572 . . . . . . . . . . . . Slashing . | . . . . . . . . . . . . . . . . . . . . . . . . . . Piercing . | . . . . . . . . . . . . . . . . . . . . . . . . . . Highest Corruption 15 | . . . . . . . . . 1 1 2 2 3 3 1 1 1 1 1 2 2 2 2 5 15 Average Corruption 1 | . . . . . . . . . 1 1 1 2 3 3 1 1 1 1 1 1 2 2 2 2 2 Corruption Purged . | . . . . . . . . . . . . . . . . . . . . . . . . . . Corruption Blocked . | . . . . . . . . . . . . . . . . . . . . . . . . . . Effects 184 | . . . . . . . . . 6 9 24 1 52 6 1 5 3 2 3 9 34 6 3 5 15 Message Errors 46 | . . . . . . . . . . 2 8 . 14 3 1 2 1 . . 3 6 1 1 1 3 Matter Fused 45 | . . . . . . . . . 2 1 6 . 12 1 . 1 . 1 3 2 7 1 1 4 3 Heat Flow Errors 24 | . . . . . . . . . . 2 2 . 10 1 . . . . . . 4 2 . . 3 Energy Discharges 18 | . . . . . . . . . . 2 2 . 3 1 . . 2 . . . 5 1 1 . 1 Parts Fused 1 | . . . . . . . . . . . . . . . . . . . . . 1 . . . . Data Loss (minor) 34 | . . . . . . . . . 2 2 5 1 9 . . 2 . 1 . 4 5 . . . 3 Data Loss (major) 4 | . . . . . . . . . . . 1 . 1 . . . . . . . 1 1 . . . Misfires 8 | . . . . . . . . . 1 . . . 3 . . . . . . . 4 . . . . Alerts 2 | . . . . . . . . . 1 . . . . . . . . . . . 1 . . . . Misdirections 2 | . . . . . . . . . . . . . . . . . . . . . . . . . 2 Overload Shots . | . . . . . . . . . . . . . . . . . . . . . . . . . . Overflow Damage 1463 | . . . . . . 32 . . . . 21 . 353 79 281 20 25 . 60 212 74 29 . . 277 Projectiles 863 | . . . . . . 11 . . . . . . . 79 191 20 25 . 60 123 74 29 . . 251 Explosions 259 | . . . . . . 21 . . . . . . 46 . 90 . . . . 89 . . . . 13 Melee 341 | . . . . . . . . . . . 21 . 307 . . . . . . . . . . . 13 Knockbacks 11 | . . . . . . 5 . . 1 . . . 4 . . . . . . . . . . . 1 Impact 7 | . . . . . . 1 . . 1 . . . 4 . . . . . . . . . . . 1 Kinetic 4 | . . . . . . 4 . . . . . . . . . . . . . . . . . . . Secondary . | . . . . . . . . . . . . . . . . . . . . . . . . . . Self-Inflicted Damage 632 | . . . . . 49 27 . . . . . . 47 . 403 . . . . 64 . . . . 42 Shots 16 | . . . . . 1 2 . . . . . . 3 . 6 . . . . 2 . . . . 2 Rammed 37 | . . 1 9 . 4 13 1 . 8 . 1 . . . . . . . . . . . . . . Targets Rammed 60 | . 5 5 9 . 5 16 1 . 10 . 1 . . . 5 . . . . 2 . . . . 1 Kicked 14 | . 5 1 . . . . . . . . . . . . 5 . . . . 2 . . . . 1 Crushed 9 | . . 3 . . 1 3 . . 2 . . . . . . . . . . . . . . . . Highest Temperature 573 | . 34 126 . . 27 573 96 288 192 193 375 . 247 164 14 . . . . . 172 98 . . 144 Average Temperature 79 | . 10 20 . . 12 124 46 151 84 83 149 . 77 41 9 . . . . . 63 59 . . 77 Received Heat Transfer 4120 | . 372 579 . . 477 1062 . . . . 369 . 288 51 147 36 . . 87 226 276 . . 60 90 Effects 14 | . . . . . . 12 . . . . 2 . . . . . . . . . . . . . . Shutdowns 4 | . . . . . . 3 . . . . 1 . . . . . . . . . . . . . . Energy Bleed 3 | . . . . . . 2 . . . . 1 . . . . . . . . . . . . . . Matter Decay 3 | . . . . . . 3 . . . . . . . . . . . . . . . . . . . Damage (major) 3 | . . . . . . 3 . . . . . . . . . . . . . . . . . . . Damage (core) 1 | . . . . . . 1 . . . . . . . . . . . . . . . . . . . Siege Activations 2 | . . . . . . . . . . . . . 2 . . . . . . . . . . . . Total Turns 16 | . . . . . . . . . . . . . 16 . . . . . . . . . . . . Longest Duration 10 | . . . . . . . . . . . . . 10 . . . . . . . . . . . . Martial Activations . | . . . . . . . . . . . . . . . . . . . . . . . . . . Shielding Activations . | . . . . . . . . . . . . . . . . . . . . . . . . . . Robots Disrupted 1 | . . . . . . . . . . . . . . . . . . . . . . . . . 1 Combat Hostiles 1 | . . . . . . . . . . . . . . . . . . . . . . . . . 1 Robots Corrupted 7 | . . . . . . . . . . . 1 . 2 . . . . . . . . . . . 4 Combat Hostiles 5 | . . . . . . . . . . . . . 2 . . . . . . . . . . . 3 Parts Fried 5 | . . . . . 1 . . . . . . . . . . . . . . . . 1 . . 3 Impact Corruptions 12 | . . . . . . . . . . . 4 . 7 . . . . . . . . . . . 1 Robots Melted 1 | . . . . . . . . . . . . . . . . . . . . . 1 . . . . Combat Hostiles 1 | . . . . . . . . . . . . . . . . . . . . . 1 . . . . Parts Melted 22 | . . 3 . . 1 . . 2 2 . 2 . 1 2 . . 2 . . 3 2 . . . 2 Heat Transferred 14189 | . . 2331 . . 50 50 . 888 333 74 370 . 460 225 1300 625 575 . 900 1325 2537 450 50 359 1287 Parts Sabotaged . | . . . . . . . . . . . . . . . . . . . . . . . . . . Parts Stolen . | . . . . . . . . . . . . . . . . . . . . . . . . . . Parts Stripped . | . . . . . . . . . . . . . . . . . . . . . . . . . . Power Chain Reactions 4 | . . . . . 1 1 . . . . . . . . . . . . . . . . . . 2 Alert | -11 -10 -9 -9 -9 -8 -8 -7 -7 -7 -7 -7 -7 -7 -6 -6 -6 -6 -6 -5 -5 -5 -5 -5 -5 -4 ------- Run | Yrd Mat Mat Min Exi Min Mat Fac Was Fac Low Low Zio Dee Pro Fac Low Low Dat Pro Fac Ext Cet Arc Hub Fac Maximum Alert Level 3 | . . 2 1 . . 2 1 . . . . . . . 1 . . . . 3 3 2 1 3 3 Low Security (%) 59 | . 100 63 99 . 100 39 . 100 100 . . . . . 91 . . . . 60 39 . 9 6 3 Level 1 22 | . . 17 . . . 43 100 . . . . . . . 8 . . . . . 31 12 90 32 73 Level 2 14 | . . 19 . . . 16 . . . . . . . . . . . . . 35 19 87 . 15 17 Level 3 3 | . . . . . . . . . . . . . . . . . . . . 3 10 . . 45 6 Level 4 . | . . . . . . . . . . . . . . . . . . . . . . . . . . Level 5 . | . . . . . . . . . . . . . . . . . . . . . . . . . . High Security . | . . . . . . . . . . . . . . . . . . . . . . . . . . Max Security . | . . . . . . . . . . . . . . . . . . . . . . . . . . Peak Influence 972 | . 84 515 201 . 120 634 316 110 165 . . . . . 264 . . . . 708 808 525 292 972 904 Initial 476 | . . . 196 . . . 287 110 . . . . . . . . . . . 150 305 448 162 84 476 Average 195 | . 25 180 61 . 23 232 260 15 32 . . . . . 78 . . . . 284 288 453 253 616 365 Influence Increases 11257 | . 386 996 194 . 332 1573 99 . 440 . 199 . . 60 676 241 120 . 230 1001 1397 371 200 1494 1248 Destroy 0b10 Robot/C 5900 | . 240 700 140 . 240 980 60 . 160 . 160 . . 60 260 220 100 . 200 200 700 160 80 540 700 Destroy 0b10 Robot/NC 360 | . 5 80 5 . 5 70 . . 10 . . . . . 20 . . . 10 30 35 10 . 30 50 Destroy Leader 1152 | . 62 194 20 . 50 250 10 . 70 . 20 . . . 84 20 20 . 20 30 44 . . 124 134 Allied During Kill 1548 | . . . 14 . 2 . . . 180 . 19 . . . . 1 . . . . 479 170 80 602 1 Successful Hack 147 | . 19 16 . . . 38 14 . 3 . . . . . . . . . . 8 5 . . . 44 Select Force Hacks 30 | . 30 . . . . . . . . . . . . . . . . . . . . . . . . Disable Machine 780 | . . . . . . 60 . . 15 . . . . . 180 . . . . 360 15 15 30 90 15 Destroy Structure 845 | . . 6 . . 5 70 . . 2 . . . . . 132 . . . . 208 74 16 10 78 244 Advance Influence 150 | . . . . . . . . . . . . . . . . . . . . 150 . . . . . Partial Spotted 15 | . . . . . . . . . . . . . . . . . . . . 15 . . . . . Lose Combat Pursuer 330 | . 30 . 15 . 30 105 15 . . . . . . . . . . . . . 45 . . 30 60 Influence Decreases 10392 | . 386 492 698 . 332 941 415 316 440 . 199 . . 60 420 497 120 . 230 378 1218 768 363 764 1355 Entered New Map 2523 | . . . 308 . . . 345 206 . . . . . . . 95 . . . . 318 354 243 158 496 Time Decay 6147 | . 356 472 390 . 260 551 70 110 280 . 179 . . 60 390 372 120 . 230 368 670 334 60 286 589 Lost Part 500 | . 20 20 . . 50 90 . . . . . . . . 30 10 . . . 10 20 . . . 250 Lost Ally 772 | . 10 . . . 22 . . . 160 . 20 . . . . 20 . . . . 60 80 60 320 20 Purge Threat 450 | . . . . . . 300 . . . . . . . . . . . . . . 150 . . . . Squads Dispatched 46 | . 4 2 . . . 12 . . 4 . . . . . 6 . . . . 3 . . . 9 6 Investigation 7 | . 2 . . . . 2 . . 1 . . . . . . . . . . 1 . . . 1 . Extermination 10 | . . . . . . . . . 2 . . . . . 2 . . . . 2 . . . 1 3 Reinforcement 15 | . 2 2 . . . 4 . . 1 . . . . . 1 . . . . . . . . 3 2 Assault 2 | . . . . . . 1 . . . . . . . . . . . . . . . . . 1 . Garrison 12 | . . . . . . 5 . . . . . . . . 3 . . . . . . . . 3 1 Intercept . | . . . . . . . . . . . . . . . . . . . . . . . . . . Searches Triggered . | . . . . . . . . . . . . . . . . . . . . . . . . . . Data Miner Redirects 1 | . . . . . . . . . . . . . . . . . . . . . . . . 1 . Construction Impeded 3 | . . . . . . 1 . . 1 . . . . . . . . . . . . . . . 1 Haulers Reinforced 1 | . . . . . . . . . . . . . . . . . . . . . . . . . 1 Active Scanning Responses . | . . . . . . . . . . . . . . . . . . . . . . . . . . Cargo Convoy Interrupts 2 | . . . . . . . . . 1 . . . . . . . . . . . . . . . 1 Stealth | -11 -10 -9 -9 -9 -8 -8 -7 -7 -7 -7 -7 -7 -7 -6 -6 -6 -6 -6 -5 -5 -5 -5 -5 -5 -4 --------- Run | Yrd Mat Mat Min Exi Min Mat Fac Was Fac Low Low Zio Dee Pro Fac Low Low Dat Pro Fac Ext Cet Arc Hub Fac Distress Signals 20 | . 1 3 . . . 6 . . . . . . . . 1 . . . . . 1 2 . 4 2 Communications Jammed 66 | . . . . . . . . . . . . . . . . . . . . . 25 . . 9 32 Distress Signals 66 | . . . . . . . . . . . . . . . . . . . . . 25 . . 9 32 Times Spotted 470 | . 27 56 8 . 14 89 5 1 11 1 15 . 49 3 19 12 5 . 11 9 35 10 2 22 66 Peak Tracking Total 37 | . 4 5 4 . 5 9 4 1 2 1 4 . 37 2 4 5 3 . 5 3 3 5 1 5 12 Tactical Retreats 20 | . 2 . 1 . 2 7 1 . . . . . . . . . . . . . 2 . . 2 3 Traps | -11 -10 -9 -9 -9 -8 -8 -7 -7 -7 -7 -7 -7 -7 -6 -6 -6 -6 -6 -5 -5 -5 -5 -5 -5 -4 ------- Run | Yrd Mat Mat Min Exi Min Mat Fac Was Fac Low Low Zio Dee Pro Fac Low Low Dat Pro Fac Ext Cet Arc Hub Fac Traps Triggered 12 | . 1 . . . . 2 1 . 3 . . . . . . . . . . . 3 . . 2 . Indirectly . | . . . . . . . . . . . . . . . . . . . . . . . . . . Trap Hack Attempts . | . . . . . . . . . . . . . . . . . . . . . . . . . . Triggered . | . . . . . . . . . . . . . . . . . . . . . . . . . . Disarmed . | . . . . . . . . . . . . . . . . . . . . . . . . . . Reprogrammed . | . . . . . . . . . . . . . . . . . . . . . . . . . . Reused . | . . . . . . . . . . . . . . . . . . . . . . . . . . Traps Extracted . | . . . . . . . . . . . . . . . . . . . . . . . . . . Installed . | . . . . . . . . . . . . . . . . . . . . . . . . . . Triggered . | . . . . . . . . . . . . . . . . . . . . . . . . . . Machines | -11 -10 -9 -9 -9 -8 -8 -7 -7 -7 -7 -7 -7 -7 -6 -6 -6 -6 -6 -5 -5 -5 -5 -5 -5 -4 ---------- Run | Yrd Mat Mat Min Exi Min Mat Fac Was Fac Low Low Zio Dee Pro Fac Low Low Dat Pro Fac Ext Cet Arc Hub Fac Machines Disabled 57 | . . . . . . 4 . . 1 1 . . 1 . 12 1 . . . 24 3 1 2 6 1 Max in Single Turn 6 | . . . . . . 1 . . 1 1 . . 1 . 5 1 . . . 6 1 1 . 1 1 Garrison Access 2 | . . . . . . . . . . . . . . . 1 . . . . 1 . . . . . Network Hub 1 | . . . . . . . . . . . . . . . . . . . . . . . . 1 . Machines Repaired . | . . . . . . . . . . . . . . . . . . . . . . . . . . Machines Dismantled 1 | . . . . . . . . . . . . . . . . . . . . . . . . 1 . Machines Sabotaged . | . . . . . . . . . . . . . . . . . . . . . . . . . . Overloaded Fab Kills . | . . . . . . . . . . . . . . . . . . . . . . . . . . Hacking | -11 -10 -9 -9 -9 -8 -8 -7 -7 -7 -7 -7 -7 -7 -6 -6 -6 -6 -6 -5 -5 -5 -5 -5 -5 -4 --------- Run | Yrd Mat Mat Min Exi Min Mat Fac Was Fac Low Low Zio Dee Pro Fac Low Low Dat Pro Fac Ext Cet Arc Hub Fac Machines Accessed 49 | . 7 6 . 1 . 9 1 . 3 . 2 . . . 4 . . 4 . 4 2 . . 2 4 Terminals 34 | . 6 6 . . . 9 1 . 2 . . . . . 3 . . . . 2 2 . . 1 2 Fabricators 2 | . . . . . . . . . 1 . . . . . . . . . . 1 . . . . . Repair Stations . | . . . . . . . . . . . . . . . . . . . . . . . . . . Recycling Units 1 | . 1 . . . . . . . . . . . . . . . . . . . . . . . . Scanalyzers . | . . . . . . . . . . . . . . . . . . . . . . . . . . Garrison Access 5 | . . . . . . . . . . . . . . . 1 . . . . 1 . . . 1 2 Total Hacks 148 | . 24 18 . 1 . 29 2 . 5 . 4 . . . 11 . . 18 . 10 9 . . 3 14 Successful 76 | . 15 8 . 1 . 12 1 . 3 . 4 . . . 1 . . 18 . 4 3 . . . 6 Failed 71 | . 9 10 . . . 16 1 . 2 . . . . . 10 . . . . 6 6 . . 3 8 Catastrophic 15 | . 1 1 . . . 3 . . 1 . . . . . 4 . . . . 1 1 . . 1 2 Database Lockouts 1 | . . . . . . 1 . . . . . . . . . . . . . . . . . . . Manual 106 | . 23 13 . . . 24 2 . 3 . . 5 . . 9 . . . . 6 9 1 . 3 8 Terminals 108 | . 23 18 . . . 29 2 . 2 . . . . . 9 . . . . 5 9 . . 2 9 Fabricators 7 | . . . . . . . . . 3 . . . . . . . . . . 4 . . . . . Repair Stations . | . . . . . . . . . . . . . . . . . . . . . . . . . . Recycling Units 1 | . 1 . . . . . . . . . . . . . . . . . . . . . . . . Scanalyzers . | . . . . . . . . . . . . . . . . . . . . . . . . . . Garrison Access 9 | . . . . . . . . . . . . . . . 2 . . . . 1 . . . 1 5 Terminal Hacks 43 | . 7 3 . 1 . 5 . . 1 . 4 . . . . . . 18 . 1 1 . . . 2 Record 9 | . . . . 1 . . . . . . 3 . . . . . . 5 . . . . . . . Part Schematic 6 | . . . . . . 1 . . . . . . . . . . . 5 . . . . . . . Robot Schematic 5 | . . . . . . . . . . . . . . . . . . 5 . . . . . . . Robot Analysis 4 | . 2 1 . . . . . . . . . . . . . . . . . . . . . . 1 Prototype ID Bank 12 | . 5 2 . . . 2 . . . . . . . . . . . 3 . . . . . . . Open Door 1 | . . . . . . . . . . . 1 . . . . . . . . . . . . . . Branch Access Points 3 | . . . . . . . . . 1 . . . . . . . . . . 1 . . . . 1 Unreport Threat 3 | . . . . . . 2 . . . . . . . . . . . . . . 1 . . . . Fabricator Hacks 4 | . . . . . . . . . 2 . . . . . . . . . . 2 . . . . . Load Schematic 2 | . . . . . . . . . 1 . . . . . . . . . . 1 . . . . . Build 2 | . . . . . . . . . 1 . . . . . . . . . . 1 . . . . . Repair Station Hacks . | . . . . . . . . . . . . . . . . . . . . . . . . . . Recycling Unit Hacks . | . . . . . . . . . . . . . . . . . . . . . . . . . . Scanalyzer . | . . . . . . . . . . . . . . . . . . . . . . . . . . Garrison Access Hacks 2 | . . . . . . . . . . . . . . . 1 . . . . 1 . . . . . Seal Access 2 | . . . . . . . . . . . . . . . 1 . . . . 1 . . . . . Unauthorized Hacks 27 | . 8 5 . . . 7 1 . . . . . . . . . . . . . 2 . . . 4 Terminals 26 | . 7 5 . . . 7 1 . . . . . . . . . . . . . 2 . . . 4 Assimilate 2 | . 1 . . . . . . . . . . . . . . . . . . . 1 . . . . Botnet 8 | . 1 1 . . . 2 1 . . . . . . . . . . . . . 1 . . . 2 Operators 1 | . . . . . . . . . . . . . . . . . . . . . . . . . 1 Skim 15 | . 5 4 . . . 5 . . . . . . . . . . . . . . . . . . 1 Fabricators . | . . . . . . . . . . . . . . . . . . . . . . . . . . Repair Stations . | . . . . . . . . . . . . . . . . . . . . . . . . . . Recycling Units 1 | . 1 . . . . . . . . . . . . . . . . . . . . . . . . Tunnel 1 | . 1 . . . . . . . . . . . . . . . . . . . . . . . . Scanalyzers . | . . . . . . . . . . . . . . . . . . . . . . . . . . Garrison Access . | . . . . . . . . . . . . . . . . . . . . . . . . . . Data Cores Recovered 2 | . . . . . . . . . . . . . . . 1 . . . . . . . . . 1 Used . | . . . . . . . . . . . . . . . . . . . . . . . . . . Hacking Detections 38 | . 6 6 . . . 8 1 . 2 . . . . . 3 . . . . 3 2 1 . 2 4 Full Trace Events 3 | . . . . . . . . . 1 . . . . . . . . . . 1 . . . 1 . Feedback Events . | . . . . . . . . . . . . . . . . . . . . . . . . . . Feedback Blocked . | . . . . . . . . . . . . . . . . . . . . . . . . . . Robot Schematics Acquired 5 | . . . . . . . . . . . . . . . . . . 5 . . . . . . . Robots Built . | . . . . . . . . . . . . . . . . . . . . . . . . . . Authchips . | . . . . . . . . . . . . . . . . . . . . . . . . . . Time . | . . . . . . . . . . . . . . . . . . . . . . . . . . Total Robot Build Rating . | . . . . . . . . . . . . . . . . . . . . . . . . . . Part Schematics Acquired 6 | . . . . . . 1 . . . . . . . . . . . 5 . . . . . . . Parts Built 1 | . . . . . . . . . 1 . . . . . . . . . . . . . . . . Authchips . | . . . . . . . . . . . . . . . . . . . . . . . . . . Time 220 | . . . . . . . . . 51 . . . . . . . . . . 169 . . . . . Total Part Build Rating 1 | . . . . . . . . . 1 . . . . . . . . . . . . . . . . Parts Repaired . | . . . . . . . . . . . . . . . . . . . . . . . . . . Time . | . . . . . . . . . . . . . . . . . . . . . . . . . . Parts Recycled . | . . . . . . . . . . . . . . . . . . . . . . . . . . Recycled Matter . | . . . . . . . . . . . . . . . . . . . . . . . . . . Retrieved Matter . | . . . . . . . . . . . . . . . . . . . . . . . . . . Retrieved Components . | . . . . . . . . . . . . . . . . . . . . . . . . . . Parts Scanalyzed . | . . . . . . . . . . . . . . . . . . . . . . . . . . Part Schematics Acquired . | . . . . . . . . . . . . . . . . . . . . . . . . . . Parts Damaged . | . . . . . . . . . . . . . . . . . . . . . . . . . . Bothacking | -11 -10 -9 -9 -9 -8 -8 -7 -7 -7 -7 -7 -7 -7 -6 -6 -6 -6 -6 -5 -5 -5 -5 -5 -5 -4 ------------ Run | Yrd Mat Mat Min Exi Min Mat Fac Was Fac Low Low Zio Dee Pro Fac Low Low Dat Pro Fac Ext Cet Arc Hub Fac Used RIF Installer . | . . . . . . . . . . . . . . . . . . . . . . . . . . Robots Hacked . | . . . . . . . . . . . . . . . . . . . . . . . . . . Non-combat . | . . . . . . . . . . . . . . . . . . . . . . . . . . Combat . | . . . . . . . . . . . . . . . . . . . . . . . . . . Robot Hacks Applied . | . . . . . . . . . . . . . . . . . . . . . . . . . . Relay Couplers Released . | . . . . . . . . . . . . . . . . . . . . . . . . . . Fabnet Peak Effective % . | . . . . . . . . . . . . . . . . . . . . . . . . . . Robots Rewired 33 | . . . . . . . . . . 3 . . . . . 1 . . . . 29 . . . . Allies Hacked 1 | . . . . . . . . . 1 . . . . . . . . . . . . . . . . Hacks Repelled . | . . . . . . . . . . . . . . . . . . . . . . . . . . Allies | -11 -10 -9 -9 -9 -8 -8 -7 -7 -7 -7 -7 -7 -7 -6 -6 -6 -6 -6 -5 -5 -5 -5 -5 -5 -4 -------- Run | Yrd Mat Mat Min Exi Min Mat Fac Was Fac Low Low Zio Dee Pro Fac Low Low Dat Pro Fac Ext Cet Arc Hub Fac Total Allies 72 | . 1 . 4 . . . . 20 . 3 . 2 . . . 1 . . . . 36 5 . . . Largest Group 31 | . 1 . 4 3 3 . . 20 18 3 3 2 2 . . 1 . . . . 31 30 24 19 1 Highest-Rated Group 1385 | . 10 . 71 40 40 . . 476 427 93 60 192 192 . . 30 . . . . 1095 1385 1197 850 89 Highest-Rated Ally 159 | . 10 . 31 16 16 . . 35 35 31 20 96 96 . . 30 . . . . 159 145 145 96 89 Total Orders . | . . . . . . . . . . . . . . . . . . . . . . . . . . Ally Attacks 626 | . . . 17 . 18 . . 11 98 9 15 . 26 . . . . . . . 172 52 52 154 2 Total Damage 11758 | . . . 111 . 166 . . 159 1228 186 366 . 363 . . . . . . . 3446 992 1016 3629 96 Kills 85 | . . . 1 . 1 . . 1 9 . 5 . 3 . . . . . . . 24 6 4 30 1 Allies Corrupted 4 | . . . . . . . . . 2 . . . . . . . . . . . . . . 2 . Allies Melted . | . . . . . . . . . . . . . . . . . . . . . . . . . . Intel | -11 -10 -9 -9 -9 -8 -8 -7 -7 -7 -7 -7 -7 -7 -6 -6 -6 -6 -6 -5 -5 -5 -5 -5 -5 -4 ------- Run | Yrd Mat Mat Min Exi Min Mat Fac Was Fac Low Low Zio Dee Pro Fac Low Low Dat Pro Fac Ext Cet Arc Hub Fac Active Infowar (turns) 14767 | . . . . . . . 155 851 1400 1186 1903 1487 40 523 303 . . . . 667 3068 754 121 624 1685 Sensors 7848 | . . . . . . . 155 851 1400 1186 1903 1487 40 523 303 . . . . . . . . . . Jamming 6919 | . . . . . . . . . . . . . . . . . . . . 667 3068 754 121 624 1685 Robot Analysis Total 4 | . 2 1 . . . . . . . . . . . . . . . . . . . . . . 1 Derelict Logs Recovered 10 | . . . 2 . . . . . . 1 2 3 . 2 . . . . . . . . . . . Drone Launches . | . . . . . . . . . . . . . . . . . . . . . . . . . . Drone Recoveries . | . . . . . . . . . . . . . . . . . . . . . . . . . . Exploration | -11 -10 -9 -9 -9 -8 -8 -7 -7 -7 -7 -7 -7 -7 -6 -6 -6 -6 -6 -5 -5 -5 -5 -5 -5 -4 ------------- Run | Yrd Mat Mat Min Exi Min Mat Fac Was Fac Low Low Zio Dee Pro Fac Low Low Dat Pro Fac Ext Cet Arc Hub Fac Turns Passed 34129 | . 1228 3409 1649 537 1344 3030 156 851 1400 1186 1903 1487 3512 523 1586 1092 667 178 853 1115 3070 754 121 624 1854 Spaces Moved 14447 | 1 560 1203 670 224 501 1072 60 458 726 495 829 933 1485 269 778 533 275 97 290 481 1125 323 45 253 761 Core 45 | . 22 . . . . . . . . . . . . . . . . . . . . . . . 23 Treads 6751 | . . 983 670 224 501 1072 60 458 726 495 730 . 832 . . . . . . . . . . . . Legs 6411 | 1 538 220 . . . . . . . . . . 445 269 778 533 275 97 290 481 1125 323 45 253 738 Wheels 1240 | . . . . . . . . . . . 99 933 208 . . . . . . . . . . . . Hover . | . . . . . . . . . . . . . . . . . . . . . . . . . . Flight . | . . . . . . . . . . . . . . . . . . . . . . . . . . Fastest Speed 100 | 120 120 240 240 240 240 160 225 152 152 232 160 145 145 183 183 183 183 183 183 210 210 210 210 210 100 Average Speed 209 | 120 177 246 240 240 240 236 225 178 184 232 223 158 212 183 183 194 183 183 193 210 211 222 210 210 198 Slowest Speed 850 | 120 850 330 240 240 240 243 225 225 232 232 232 160 270 183 183 235 183 183 210 210 300 300 210 210 330 Overloaded Moves . | . . . . . . . . . . . . . . . . . . . . . . . . . . Propulsion Burnouts . | . . . . . . . . . . . . . . . . . . . . . . . . . . Robots Hopped . | . . . . . . . . . . . . . . . . . . . . . . . . . . Potential Cave-ins . | . . . . . . . . . . . . . . . . . . . . . . . . . . Cave-ins Triggered . | . . . . . . . . . . . . . . . . . . . . . . . . . . Exploration Rate (%) 58 | 2 96 82 96 58 87 88 2 97 15 65 67 85 76 45 19 74 48 68 49 14 88 70 70 27 26 Regions Visited 25 Branch Regions 16 Pre-discovered Areas 9 | . 1 . 1 1 . 1 . . . . 1 2 . 1 . . . 1 . . . . . . . Known Exits Taken 12 | . 1 . 1 . 1 1 . . 1 1 1 1 1 1 . . . . 1 1 . . . . . Unknown Exits Taken 11 | 1 . 1 . 1 . . . . . . . . . . 1 1 1 1 . . 1 1 1 1 . Scrap Searched 17 | . . . 1 . 1 . . . . 3 3 2 . 2 . 3 . . 2 . . . . . . Spaces Dug 72 | . . . . . . . . . 2 . 4 . . . 30 . . . . 9 4 . . 8 15 Terrain Destroyed 599 | . . . . . 6 67 . . 2 . 4 . 16 6 143 12 9 . 19 99 27 3 . 15 171 Melee 6 | . . . . . . . . . 2 . 4 . . . . . . . . . . . . . . Projectile 237 | . . . . . . 20 . . . . . . 4 6 55 12 9 . 19 20 27 3 . 15 47 AOE 356 | . . . . . 6 47 . . . . . . 12 . 88 . . . . 79 . . . . 124 Terrain Rammed . | . . . . . . . . . . . . . . . . . . . . . . . . . . Walls Destroyed . | . . . . . . . . . . . . . . . . . . . . . . . . . . Machines Disabled . | . . . . . . . . . . . . . . . . . . . . . . . . . . Actions | -11 -10 -9 -9 -9 -8 -8 -7 -7 -7 -7 -7 -7 -7 -6 -6 -6 -6 -6 -5 -5 -5 -5 -5 -5 -4 --------- Run | Yrd Mat Mat Min Exi Min Mat Fac Was Fac Low Low Zio Dee Pro Fac Low Low Dat Pro Fac Ext Cet Arc Hub Fac Total 17224 | . 691 1487 685 225 570 1364 72 480 767 527 854 944 1779 289 859 561 414 100 533 543 1718 345 70 314 1033 Wait 1231 | . 48 102 . . 12 73 . . 3 14 6 . 181 16 7 . 122 . 211 7 273 4 25 39 88 Move 14423 | . 559 1202 669 223 500 1071 60 457 725 494 828 932 1484 268 777 532 274 96 289 480 1124 322 44 252 761 Hop . | . . . . . . . . . . . . . . . . . . . . . . . . . . Pick Up 106 | . 3 32 . . . 17 . 2 7 . . 1 15 . 7 1 1 . 1 6 3 5 . . 5 Fast Attach 73 | . 2 8 . . 2 18 . 5 2 . 4 5 13 . 1 . . . 1 2 2 . . . 8 Attach 44 | . 1 5 . . 7 8 2 . 1 . . . 12 . . . . . . . . . . . 8 Detach 88 | . . 2 . . 1 7 . . 1 . . . 7 . 8 6 3 4 4 4 15 1 . 2 23 Swap 55 | . 6 13 . 1 1 12 . 1 4 . 2 . 7 . 1 . . . . 2 1 . . 1 3 Drop 154 | . 5 37 . 1 . 25 . 8 5 . 1 6 26 . 9 1 1 . 2 8 5 5 . . 9 Fire 690 | . 62 81 7 . 40 117 9 6 3 3 8 . 14 5 44 19 13 . 25 32 49 8 1 17 127 Melee 26 | . . . . . . . . . 2 . 4 . 20 . . . . . . . . . . . . Ram . | . . . . . . . . . . . . . . . . . . . . . . . . . . Kick 14 | . 5 1 . . . . . . . . . . . . 5 . . . . 2 . . . . 1 Crush 46 | . . 4 9 . 5 16 1 . 10 . 1 . . . . . . . . . . . . . . Escape Stasis 19 | . . . . . . . . . 4 . . . . . . . . . . . 15 . . . . Rewire 252 | . . . . . 2 . . 1 . 16 . . . . . 2 . . . . 231 . . . . Trap . | . . . . . . . . . . . . . . . . . . . . . . . . . . Miscellaneous 3 | . . . . . . . . . . . . . . . . . . . . . . . . 3 . Route ------- -11/Scrapyard -10/Materials (discovered 5 exits: *Mat x3 / [*Min] / Sub) -9/Materials (discovered 4 exits: *Mat / [*Min] / *Sto x2) -9/Mines (discovered 4 exits: *Mat x2 / *Exi / *Zio) -9/Exiles -8/Mines -8/Materials (discovered 3 exits: *Fac x3) -7/Factory -7/Waste -7/Factory (discovered 2 exits: *Low x2) -7/Lower Caves -7/Lower Caves -7/Zion (discovered 2 exits: *Dee / [*Pro]) -7/Deep Caves -6/Proximity Caves -6/Factory (discovered 4 exits: *Fac x3 / [*Low]) -6/Lower Caves -6/Lower Caves -6/Data Miner -5/Proximity Caves -5/Factory (discovered 4 exits: Upp x2 / *Ext x2) -5/Extension (discovered 2 exits: *Fac / *Cet) -5/Cetus (discovered 2 exits: *Fac / [*Arc]) -5/Archives -5/Hub_04(d) -4/Factory (discovered 3 exits: *Upp x2 / Arm) History --------- Turn | Location | Event 1 | -11/Scrapyard | Discovered new exit (range 0) 1 | -11/Scrapyard | Entered Materials 222 | -10/Materials | Discovered new exit (range 16) 302 | -10/Materials | Build established: Mutant 483 | -10/Materials | Learned location of 1 exit from Recycling 496 | -10/Materials | Discovered new exit (range 5) 546 | -10/Materials | Learned location of 2 exits from Mines 613 | -10/Materials | Core integrity fell below 50% 648 | -10/Materials | Learned 2 Storage zone layouts 685 | -10/Materials | Learned location of 2 exits from Subcaves 697 | -10/Materials | Discovered new exit (range 16) 711 | -10/Materials | Learned Storage trap positions 725 | -10/Materials | Learned Storage trap positions 747 | -10/Materials | Identified exit to Materials 747 | -10/Materials | Identified exit to Subcaves 824 | -10/Materials | Loaded intel: 8 terminal locations 1229 | -10/Materials | Entered another Materials area 1229 | -9/Materials | Evolved 2 slots: Utility x1, Weapon x1 1230 | -9/Materials | Identified exit to Storage 1389 | -9/Materials | Discovered exit to Storage (range 14) 1851 | -9/Materials | Build established: Tank 2767 | -9/Materials | Build established: Scavenger-Tank 3075 | -9/Materials | Discovered new exit (range 15) 3350 | -9/Materials | Discovered new exit (range 13) 4638 | -9/Materials | Entered Mines 4639 | -9/Mines | Identified exit to Exiles 4639 | -9/Mines | Identified exit to Materials 4643 | -9/Mines | Met a Derelict bent on vengeance 4674 | -9/Mines | Learned location of Storage (-9) 4787 | -9/Mines | Build established: Tank 4828 | -9/Mines | Assisted by bots powering up and referring to "LRC-V3" 4855 | -9/Mines | Discovered exit to Materials (range 9) 4939 | -9/Mines | Deemed a non-threat by the Exiles lab entrance 4976 | -9/Mines | A Derelict revealed a hidden shortcut to a safe place 5540 | -9/Mines | Received a Rocket Launcher from a helpful Derelict 5881 | -9/Mines | Learned 2 Materials zone layouts 5892 | -9/Mines | Received a Mining Laser from a helpful Derelict 6287 | -9/Mines | Entered Exiles 6287 | -9/Exiles | Accompanied by 3 allies 6347 | -9/Exiles | Met 8R-AWN 6388 | -9/Exiles | Met EX-HEX 6515 | -9/Exiles | Met EX-DEC 6606 | -9/Exiles | Learned location of Zion (-7) 6800 | -9/Exiles | Discovered new exit (range 10) 6824 | -9/Exiles | Entered Mines 6824 | -8/Mines | Accompanied by 3 allies 7000 | -8/Mines | Found a Scrap Suit stashed away for nefarious purposes 7049 | -8/Mines | Lost 3 allies 7168 | -8/Mines | Discovered exit to Materials (range 5) 7176 | -8/Mines | Lost 4 parts (2n2w) 7448 | -8/Mines | Build established: Gunner 7998 | -8/Mines | Build established: Scavenger-Gunner 8168 | -8/Mines | Entered Materials 8168 | -8/Materials | Evolved 2 slots: Propulsion x1, Utility x1 8169 | -8/Materials | Identified exit to Factory 8501 | -8/Materials | Build established: Scavenger-Tank 8641 | -8/Materials | Destroyed 7 combat bots 8651 | -8/Materials | Lost 7 parts (1n3u3w) 8891 | -8/Materials | Build established: Scavenger-Gunner 9204 | -8/Materials | Build established: Scavenger-Tank 9874 | -8/Materials | Learned 4 Factory zone layouts 9916 | -8/Materials | Learned 4 Factory zone layouts 9921 | -8/Materials | Learned 2 Lower Caves zone layouts 9923 | -8/Materials | Learned 4 Recycling zone layouts 9924 | -8/Materials | Learned Factory fabricator intel 9934 | -8/Materials | Learned 4 Recycling zone layouts 10303 | -8/Materials | Garrison activated, responded to threat 10795 | -8/Materials | Central database locked down 10968 | -8/Materials | First assault squad dispatched 11019 | -8/Materials | Build established: Tank 11039 | -8/Materials | Garrison activated, responded to threat 11198 | -8/Materials | Entered Factory 11198 | -7/Factory | Evolved 2 slots: Utility x2 11199 | -7/Factory | Identified exit to Lower Caves 11200 | -7/Factory | Loaded intel: 6 fabricator locations 11354 | -7/Factory | Sucked down chute 11354 | -7/Factory | Entered Waste 11355 | -7/Waste | Joined by Warlord forces that had cleared the area 11994 | -7/Waste | A Compactor rumbled back to life 11996 | -7/Waste | Spotted C-40 Crusher 11996 | -7/Waste | Allies destroyed C-40 Crusher 12079 | -7/Waste | Discovered new exit (range 14) 12203 | -7/Waste | Identified exit to Factory 12205 | -7/Waste | Entered Factory 12205 | -7/Factory | Accompanied by 18 allies 12882 | -7/Factory | Fabricated Huge Storage Unit (x1) 12886 | -7/Factory | Lost 6 allies 13168 | -7/Factory | Lost 4 allies 13295 | -7/Factory | Found Prototype Launcher 13295 | -7/Factory | Identified Rocket Array 13532 | -7/Factory | Cargo convoy interrupted 13605 | -7/Factory | Entered Lower Caves 13605 | -7/Lower Caves | Accompanied by 3 allies 13660 | -7/Lower Caves | Encountered a Warlord checkpoint 14199 | -7/Lower Caves | Learned location of 1 exit from Proximity Caves 14299 | -7/Lower Caves | Discovered new exit (range 9) 14318 | -7/Lower Caves | Identified exit to Lower Caves 14436 | -7/Lower Caves | Attacked by a delusional Derelict stockpiling Unaware 14441 | -7/Lower Caves | Lost 3 allies 14791 | -7/Lower Caves | Entered another Lower Caves area 14791 | -7/Lower Caves | Accompanied by 3 allies 14872 | -7/Lower Caves | P-60 Hacker assimilated allied Gladiator 4c 15026 | -7/Lower Caves | Entered an active Warlord outpost 15048 | -7/Lower Caves | Learned Research terminal intel 15048 | -7/Lower Caves | Learned Factory garrison access intel 15259 | -7/Lower Caves | Attacked by a faux Warlord 15867 | -7/Lower Caves | Learned location of Extension (-5) 16074 | -7/Lower Caves | Build established: Scavenger-Skirmisher 16585 | -7/Lower Caves | Discovered new exit (range 6) 16592 | -7/Lower Caves | Identified exit to Zion 16694 | -7/Lower Caves | Entered Zion 16741 | -7/Zion | Learned location of 1 exit from Proximity Caves 16782 | -7/Zion | System corruption cleaned by Quarantine Array 16906 | -7/Zion | Given A8's code to call for help 16910 | -7/Zion | Discovered new exit (range 16) 16934 | -7/Zion | Acquired unknown access codes intercepted by a Zionite 17124 | -7/Zion | Learned location of 1 exit from Factory 17345 | -7/Zion | Learned location of Quarantine (-2) 17553 | -7/Zion | Enhanced Grunt warped into view, answering call for help 17561 | -7/Zion | Opened final containment barrier to the Deep Caves 17563 | -7/Zion | Enhanced Grunt warped into view, answering call for help 17929 | -7/Zion | Learned 12 Factory zone layouts 17932 | -7/Zion | Build established: Derelict-Skirmisher 18173 | -7/Zion | Discovered new exit (range 3) 18173 | -7/Zion | Saw the warning signs outside the Deep Caves entrance 18179 | -7/Zion | Identified exit to Deep Caves 18181 | -7/Zion | Entered Deep Caves 18181 | -7/Deep Caves | Accompanied by 2 allies 18427 | -7/Deep Caves | Attacked by Z-Imprinter 18439 | -7/Deep Caves | Destroyed Z-Imprinter 18487 | -7/Deep Caves | Build established: Scavenger-Tank 18524 | -7/Deep Caves | Found Prototype Protection 18524 | -7/Deep Caves | Identified Zio. Weapon Casing 18632 | -7/Deep Caves | Z-Facility disabled 18802 | -7/Deep Caves | Found Zio. Weapon Casing 19231 | -7/Deep Caves | Spotted AG-75960 19281 | -7/Deep Caves | Destroyed AG-75960 19300 | -7/Deep Caves | Lost 4 parts (1p2u1w) 19319 | -7/Deep Caves | Discovered new exit (range 15) 19341 | -7/Deep Caves | Identified exit to Proximity Caves 19386 | -7/Deep Caves | Build established: Mutant 19501 | -7/Deep Caves | Spotted AG-22590 19569 | -7/Deep Caves | Destroyed AG-22590 19591 | -7/Deep Caves | Lost 6 parts (2n3u1w) 19875 | -7/Deep Caves | Found Prototype Protection 19875 | -7/Deep Caves | Identified Zio. Heavy Carapace 19878 | -7/Deep Caves | Found Zio. Heavy Carapace 19917 | -7/Deep Caves | Found Zio. Weapon Casing 19940 | -7/Deep Caves | Found Zio. Weapon Casing 20401 | -7/Deep Caves | Triggered Deep Caves wall 20401 | -7/Deep Caves | Spotted AS-62770 20401 | -7/Deep Caves | Spotted AS-49479 20405 | -7/Deep Caves | Destroyed AS-49479 20411 | -7/Deep Caves | Destroyed AS-62770 20426 | -7/Deep Caves | Destroyed 35 combat bots 20494 | -7/Deep Caves | Exposed GOLEM chamber 20500 | -7/Deep Caves | Found GOLEM Unit 20507 | -7/Deep Caves | Found GOLEM Unit 20514 | -7/Deep Caves | Found GOLEM Unit 20810 | -7/Deep Caves | Build established: Golem 21693 | -7/Deep Caves | Entered Proximity Caves 21694 | -6/Proximity Caves | Identified exit to Factory 21842 | -6/Proximity Caves | Learned Factory stockpile data 21854 | -6/Proximity Caves | Attracted the attention of an 0b10 checkpoint 22216 | -6/Proximity Caves | Entered Factory 22216 | -6/Factory | Evolved 2 slots: Power x1, Utility x1 22217 | -6/Factory | Identified exit to Factory 22220 | -6/Factory | Loaded intel: 4 garrison access locations 22473 | -6/Factory | Garrison activated, responded to threat 22566 | -6/Factory | Discovered exit to Factory (range 3) 23695 | -6/Factory | Discovered new exit (range 9) 23802 | -6/Factory | Entered Lower Caves 23811 | -6/Lower Caves | Encountered a Warlord checkpoint 24191 | -6/Lower Caves | Attracted the attention of an 0b10 outpost 24859 | -6/Lower Caves | Discovered new exit (range 13) 24894 | -6/Lower Caves | Entered another Lower Caves area 25315 | -6/Lower Caves | Core integrity fell below 50% 25370 | -6/Lower Caves | Encountered a Warlord checkpoint 25376 | -6/Lower Caves | Discovered new exit (range 6) 25561 | -6/Lower Caves | Entered Data Miner 25561 | -6/Data Miner | Discovered new exit (range 6) 25600 | -6/Data Miner | Met Data Miner 25631 | -6/Data Miner | Learned location of Section 7 (-2) 25631 | -6/Data Miner | Acquired the access code to Warlord's prototype stash 25659 | -6/Data Miner | Received God Mode back door access code from Data Miner 25739 | -6/Data Miner | Entered Proximity Caves 25742 | -5/Proximity Caves | Spotter reported a threat 25753 | -5/Proximity Caves | Attracted the attention of an 0b10 checkpoint 25804 | -5/Proximity Caves | Destroyed 7 combat bots 25904 | -5/Proximity Caves | Spotted B-75 Beast 25922 | -5/Proximity Caves | Destroyed B-75 Beast 26592 | -5/Proximity Caves | Entered Factory 26592 | -5/Factory | Evolved 2 slots: Utility x2 26593 | -5/Factory | Identified exit to Upper Caves 26593 | -5/Factory | Identified exit to Extension 27305 | -5/Factory | Destroyed 7 combat bots 27707 | -5/Factory | Entered Extension 28777 | -5/Extension | Rescued A7 28842 | -5/Extension | Rescued a captive Derelict 29056 | -5/Extension | Build established: Commander-Golem 29687 | -5/Extension | Spotted B-75 Beast 29693 | -5/Extension | Destroyed B-75 Beast 29700 | -5/Extension | Spotted B-75 Beast 29707 | -5/Extension | Allies destroyed B-75 Beast 29774 | -5/Extension | Rescued a captive Derelict 29775 | -5/Extension | Rescued a captive Derelict 29936 | -5/Extension | Rescued a captive Derelict 29975 | -5/Extension | Rescued a captive Derelict 29975 | -5/Extension | Rescued a captive Derelict 30484 | -5/Extension | Lost 3 allies 30606 | -5/Extension | Discovered new exit (range 10) 30610 | -5/Extension | Discovered new exit (range 10) 30777 | -5/Extension | Entered Cetus 30777 | -5/Cetus | Accompanied by 29 allies (A7) 30782 | -5/Cetus | Acquired a Cetus Manufacturing Module code from A7 30807 | -5/Cetus | Spotted Cetus Guard 30807 | -5/Cetus | Spotted Cetus Guard 30811 | -5/Cetus | Allies destroyed Cetus Guard 30811 | -5/Cetus | Spotted Cetus Guard 30812 | -5/Cetus | Spotted Cetus Guard 30818 | -5/Cetus | Destroyed Cetus Guard 30822 | -5/Cetus | Allies destroyed Cetus Guard 30829 | -5/Cetus | Allies destroyed Cetus Guard 30852 | -5/Cetus | Lost 4 allies 30928 | -5/Cetus | Started Cetus Manufacturing Module 30944 | -5/Cetus | Escorted A7 to Cetus Mainframe 30953 | -5/Cetus | Manufactured an Enhanced Grunt 30978 | -5/Cetus | Manufactured an Enhanced Grunt 31003 | -5/Cetus | Manufactured an Enhanced Grunt 31028 | -5/Cetus | Manufactured an Enhanced Grunt 31053 | -5/Cetus | Manufactured an Enhanced Grunt 31103 | -5/Cetus | Discovered new exit (range 16) 31203 | -5/Cetus | Spotted Cetus Guard 31203 | -5/Cetus | Spotted Cetus Guard 31207 | -5/Cetus | Destroyed Cetus Guard 31207 | -5/Cetus | Spotted Cetus Guard 31207 | -5/Cetus | Spotted Cetus Guard 31210 | -5/Cetus | Destroyed Cetus Guard 31213 | -5/Cetus | Allies destroyed Cetus Guard 31215 | -5/Cetus | Allies destroyed Cetus Guard 31233 | -5/Cetus | Discovered new exit (range 16) 31243 | -5/Cetus | Met Revision 17 31527 | -5/Cetus | Security sweep announced 31531 | -5/Cetus | Entered Archives 31531 | -5/Archives | Accompanied by 24 allies (A7) 31536 | -5/Archives | Received a hacking code to weaken MAIN.C 31588 | -5/Archives | Lost 4 allies 31589 | -5/Archives | Discovered new exit (range 15) 31652 | -5/Archives | Entered Hub_04(d) 31652 | -5/Hub_04(d) | Accompanied by 19 allies 31673 | -5/Hub_04(d) | Spotted B-75 Beast 31681 | -5/Hub_04(d) | Destroyed B-75 Beast 31686 | -5/Hub_04(d) | Garrison activated, responded to threat 31946 | -5/Hub_04(d) | Discovered new exit (range 11) 32136 | -5/Hub_04(d) | Network Hub disabled 32250 | -5/Hub_04(d) | Spotted Lightning 32252 | -5/Hub_04(d) | First assault squad dispatched 32259 | -5/Hub_04(d) | Spotted Lightning 32260 | -5/Hub_04(d) | Spotted Lightning 32273 | -5/Hub_04(d) | Incoming assault squad redirected 32273 | -5/Hub_04(d) | Destroyed Lightning 32276 | -5/Hub_04(d) | Entered Factory 32276 | -4/Factory | Accompanied by 1 ally 32276 | -4/Factory | Evolved 2 slots: Utility x2 32415 | -4/Factory | Build established: Golem 32753 | -4/Factory | Identified exit to Upper Caves 32753 | -4/Factory | Identified exit to Armory 33424 | -4/Factory | Found Quantum Capacitor 34004 | -4/Factory | Cargo convoy interrupted 34004 | -4/Factory | Spotted Striker 34004 | -4/Factory | Spotted Executioner 34012 | -4/Factory | Destroyed Executioner 34028 | -4/Factory | Garrison activated, responded to threat 34044 | -4/Factory | System corruption reached 10% 34061 | -4/Factory | Destroyed 23 combat bots 34061 | -4/Factory | Core integrity fell below 50% 34112 | -4/Factory | Core integrity fell below 20% 34130 | -4/Factory | Destroyed by S-27 Virus with Autogun Last Messages --------------- 34104_ Slug penetrates Wall. 34105_ Dropped Huge Storage Unit. 34105_ Dropped Imp. Particle Charger. 34106_ Acquired Huge Storage Unit. 34106_ Slug penetrates Wall. 34106_ Slug penetrates Manufacturing Mainframe. 34107_ Discarded Asb. Combat Suite. 34108_ Slug penetrates Fabricator. 34108_ Penetrated by Slug. 34108_ Slug penetrates Fabricator. 34109_ K-01 Serf collects debris. 34110_ Penetrated by Slug. 34111_ System corrupted: Component data lost. 34111_ Slug penetrates Wall. 34111_ Penetrated by Slug. 34111_ Slug penetrates Wall. 34114_ K-01 Serf collects debris. 34115_ Slug penetrates Fabricator. 34126_ K-01 Serf cleans the Nuclear Reactor. 34127_ K-01 Serf destroyed. Map ----- +----------------------------------------------------+ | ?????????????????????????????????????????????????? | | ?????????????????????????????????????????????????? | | ?????????????????????????????????????????????????? | | ?????????????????????????????????????????????????? | | ?????????????????????????????????????????????????? | | ?????????????????????????????????????????????????? | | ?????????????????????????????????????????????????? | | ?????????????????????????????????????????????????? | | ????????????o????????????????????????????????????? | | ?????????????????????????????????????????????????? | | ?????????????????????????????????????????????????? | | ?????????????????????????????????????????????????? | | ?????????????????????????????????????????????????? | | ?????????????????????????????????????????????????? | | ?????????????????????????????????????????????????? | | ?????????????????????????????????????????????????? | | ?????????????????????????????????????????????????? | | ?????????????????????????????????????????????????? | | ?????????????????????????####????????????????????? | | ????????????????????????? #????????????????????? | | ????????????????????????? > ?????????????????????? | | ????????????????????????? ?????????????????????? | | ?????????????????????????#R#?????????????????????? | | ????????????????????????##/#######???????????????? | | ????????????????????????# R #???????????????? | | ????????????????????????#@k """ #????????????#### | | ????????????????????????# w """ #???????????## | | ????????????????????????#* """ #???????????##] | | ????????????????????????# #???????????## | | ????????????????????????# !""" ############## | | ????????????????????????# =%""" # !|*! # | | ????????????????????????# s """ # ""! *! [+% | | ????????????????????????# s # """!!"" #= * | | ????????????????????#########s#### "" !!! " #%[% | | ????????????????????# h # ""F" """"=%# = | | ????????????????????# # """" """" # # | | ????????????????????# / """ ###= | | ????????????????????# k # """" + | | ????????????????????# # """" ## | | ????????????????????# # """" # | | ????????????????????# # """" # | | ??????????????????? # # | | ?????????????????? ########### ### | | ?>???????????????"" """ #????????? | | ??????????????????" """ #????????? | | ?????????????????????"" #????????? | | ????????????????????? #???????? #### | | ?????????????????????"" #???????????????? | | ??????????????????????? = ???????????????? | | ?????????????????????????? ???????????????? | +----------------------------------------------------+ Best States ------------- Heat Dissipation 101 Energy Generation 45 Energy Capacity 1350 Matter Stores 300 Matter Capacity 300 Sight Range 16 Robot Scan Range 15 Terrain Scan Density 10 Jamming Range 14 Additional Mass Support 20 Armor Coverage 2400 Resistance: KI 20 Resistance: TH 15 Resistance: EX 15 Resistance: EM 15 Resistance: I 15 Resistance: S 15 Resistance: P 15 Propulsion Shielding 66 Weapon Shielding 100 Weapon Cycling 20 Phase Shifting 8 Evasion (%) 55 Targeting Accuracy 16 Core Analysis 8 Recoil Reduction 3 Item Schematics ----------------- Huge Storage Unit | -8/Materials | Hacked Combat Drone Bay | -6/Data Miner | Free Enh. Armored Leg | -6/Data Miner | Free Prc. Energy Filter | -6/Data Miner | Free Adv. VSS Leg | -6/Data Miner | Free Adv. Transmission Jammer | -6/Data Miner | Free Robot Schematics ------------------ B-48 Gladiator | -6/Data Miner | Free G-50 Soldier | -6/Data Miner | Free S-27 Virus | -6/Data Miner | Free B-60 Warrior | -6/Data Miner | Free A-27 Freighter | -6/Data Miner | Free Fabricated ------------ Huge Storage Unit | x1 | -7/Factory Repaired ---------- Nothing Alien Tech Used ----------------- None Achievements -------------- Boltbath Oh No You Don't! Turtlemind Challenges ------------ None Game ------ Seed NeutrinoLargeMegatreads Manual? 0 Play Time 03:55:41 Cumulative 174.9 hours Start 2025.06.16 @ 22:09:57 End 2025.06.18 @ 00:18:28 Sessions 3 Manual Loads 0 Difficulty Rogue Special Mode None Game No. 92 Rogue 92 Adventurer 0 Explorer 0 Win Type - Total 4 Types 3/0/1/0/0/0/0/0/0/0 Lore% 55 Gallery% 45 Achievement% 49 Wizard Run 0 Options --------- Layout 0 ASCII 0 Keyboard 1 Movement Vi Keybinds 0 Fullscreen 2 Font 24/Terminus Map View 76x50 Zoom Use 0% Tactical HUD 1 Map Filters NONE Filters NONE Steam 1 RUN: 5eb69ee7-ccce-402c-a007-d84b2b86c85f